[Event "Titled Tuesday Blitz February 15 Late 2022"]
[White "Iskusnyh, Sergei"]
[Black "Tang, Andrew"]
[WhiteFideId "4120027"]
[BlackFideId "2059630"]
[WhiteElo "2492"]
[BlackElo "2584"]
[Result "0-1"]
[Round "02"]
[TimeControl "180+1"]
[Date "2022.02.15"]
[WhiteClock "0:00:01"]
[BlackClock "0:00:04"]

1. d4 {[%clk 0:03:00]}  d5 {[%clk 0:02:55]} 2. c4 {[%clk 0:03:00]}  e6 {[%clk 0:02:55]} 3. Nf3 {[%clk 0:02:59]}  Nf6 {[%clk 0:02:56]} 4. g3 {[%clk 0:03:00]}  dxc4 {[%clk 0:02:56]} 5. Bg2 {[%clk 0:03:00]}  Nc6 {[%clk 0:02:56]} 6. O-O {[%clk 0:02:57]}  Rb8 {[%clk 0:02:56]} 7. e3 {[%clk 0:02:56]}  Be7 {[%clk 0:02:55]} 8. Qe2 {[%clk 0:02:53]}  b5 {[%clk 0:02:54]} 9. b3 {[%clk 0:02:53]}  Ba6 {[%clk 0:02:52]} 10. bxc4 {[%clk 0:02:43]}  bxc4 {[%clk 0:02:52]} 11. Nc3 {[%clk 0:02:30]}  O-O {[%clk 0:02:45]} 12. Rd1 {[%clk 0:02:28]}  Nd5 {[%clk 0:02:42]} 13. Bd2 {[%clk 0:02:28]}  Rb2 {[%clk 0:02:33]} 14. Qf1 {[%clk 0:02:10]}  Bb4 {[%clk 0:01:12]} 15. Ne4 {[%clk 0:01:57]}  Bxd2 {[%clk 0:00:38]} 16. Nfxd2 {[%clk 0:01:51]}  Ncb4 {[%clk 0:00:28]} 17. Nc5 {[%clk 0:01:37]}  Qc8 {[%clk 0:00:10]} 18. Nxa6 {[%clk 0:01:32]}  Qxa6 {[%clk 0:00:11]} 19. Nxc4 {[%clk 0:01:19]}  Rxa2 {[%clk 0:00:10]} 20. Rxa2 {[%clk 0:01:09]}  Nxa2 {[%clk 0:00:09]} 21. Ra1 {[%clk 0:01:03]}  Ndc3 {[%clk 0:00:09]} 22. Ne5 {[%clk 0:00:50]}  Qa3 {[%clk 0:00:08]} 23. Bf3 {[%clk 0:00:41]}  a5 {[%clk 0:00:08]} 24. Be2 {[%clk 0:00:12]}  a4 {[%clk 0:00:08]} 25. Bd3 {[%clk 0:00:12]}  Qb2 {[%clk 0:00:08]} 26. Re1 {[%clk 0:00:10]}  a3 {[%clk 0:00:08]} 27. Qh3 {[%clk 0:00:10]}  h6 {[%clk 0:00:06]} 28. Ng4 {[%clk 0:00:10]}  Qd2 {[%clk 0:00:04]} 29. Nxh6+ {[%clk 0:00:06]}  gxh6 {[%clk 0:00:04]} 30. Qxh6 {[%clk 0:00:06]}  Qxd3 {[%clk 0:00:04]} 31. e4 {[%clk 0:00:03]}  Nxe4 {[%clk 0:00:04]} 32. Qf4 {[%clk 0:00:01]}  Nd6 {[%clk 0:00:04]} 0-1


[Site "https://www.chess.com"]

[Event "Titled Tuesday Blitz February 15 Late 2022"]
[White "Jaracz, Pawel"]
[Black "Osmonbekov, Talaibek"]
[WhiteFideId "1102222"]
[BlackFideId "2017253"]
[WhiteElo "2429"]
[BlackElo "2135"]
[Result "1-0"]
[Round "02"]
[TimeControl "180+1"]
[Date "2022.02.16"]
[WhiteClock "0:00:32"]
[BlackClock "0:00:02"]

1. c4 {[%clk 0:02:58]}  e5 {[%clk 0:02:57]} 2. Nc3 {[%clk 0:02:54]}  d6 {[%clk 0:02:56]} 3. g3 {[%clk 0:02:54]}  f5 {[%clk 0:02:56]} 4. Bg2 {[%clk 0:02:54]}  Nf6 {[%clk 0:02:57]} 5. d3 {[%clk 0:02:54]}  Be7 {[%clk 0:02:57]} 6. e4 {[%clk 0:02:55]}  O-O {[%clk 0:02:57]} 7. Nge2 {[%clk 0:02:55]}  c6 {[%clk 0:02:53]} 8. O-O {[%clk 0:02:55]}  Qe8 {[%clk 0:02:53]} 9. h3 {[%clk 0:02:52]}  a5 {[%clk 0:02:48]} 10. Be3 {[%clk 0:02:51]}  Na6 {[%clk 0:02:47]} 11. exf5 {[%clk 0:02:43]}  Bxf5 {[%clk 0:02:46]} 12. d4 {[%clk 0:02:44]}  Nb4 {[%clk 0:02:34]} 13. g4 {[%clk 0:02:35]}  Bg6 {[%clk 0:02:28]} 14. Ng3 {[%clk 0:02:06]}  Bd3 {[%clk 0:02:10]} 15. Re1 {[%clk 0:02:04]}  Bxc4 {[%clk 0:02:07]} 16. dxe5 {[%clk 0:01:36]}  dxe5 {[%clk 0:02:06]} 17. Nce4 {[%clk 0:01:26]}  Rd8 {[%clk 0:02:00]} 18. Qc1 {[%clk 0:01:21]}  Ba6 {[%clk 0:01:43]} 19. Nxf6+ {[%clk 0:01:17]}  Rxf6 {[%clk 0:01:36]} 20. Ne4 {[%clk 0:01:16]}  Rf8 {[%clk 0:01:33]} 21. Rd1 {[%clk 0:01:12]}  Rxd1+ {[%clk 0:01:21]} 22. Qxd1 {[%clk 0:01:12]}  Qd8 {[%clk 0:01:22]} 23. Qb3+ {[%clk 0:01:11]}  Kh8 {[%clk 0:01:21]} 24. Rd1 {[%clk 0:01:10]}  Qe8 {[%clk 0:01:16]} 25. Nd6 {[%clk 0:01:01]}  Qg6 {[%clk 0:01:14]} 26. Be4 {[%clk 0:01:01]}  Qf6 {[%clk 0:00:50]} 27. g5 {[%clk 0:01:00]}  Qxd6 {[%clk 0:00:49]} 28. Rxd6 {[%clk 0:01:00]}  Bxd6 {[%clk 0:00:50]} 29. Qe6 {[%clk 0:01:00]}  Bb8 {[%clk 0:00:34]} 30. Bc5 {[%clk 0:00:59]}  Rd8 {[%clk 0:00:32]} 31. Qe7 {[%clk 0:00:59]}  Rg8 {[%clk 0:00:24]} 32. g6 {[%clk 0:00:58]}  h6 {[%clk 0:00:23]} 33. Bf5 {[%clk 0:00:49]}  Nd3 {[%clk 0:00:20]} 34. Be6 {[%clk 0:00:42]}  Nxc5 {[%clk 0:00:09]} 35. Bxg8 {[%clk 0:00:41]}  Ne4 {[%clk 0:00:07]} 36. Be6 {[%clk 0:00:33]}  Nf6 {[%clk 0:00:02]} 37. Qf8+ {[%clk 0:00:32]} 1-0


[Site "https://www.chess.com"]

[Event "Titled Tuesday Blitz February 15 Late 2022"]
[White "Jimenez Fernandez, Rebeca"]
[Black "Suarez Uriel, Adrian"]
[WhiteFideId "32070934"]
[BlackFideId "22230874"]
[WhiteElo "1853"]
[BlackElo "2316"]
[Result "0-1"]
[Round "02"]
[TimeControl "180+1"]
[Date "2022.02.16"]
[WhiteClock "0:00:06"]
[BlackClock "0:01:54"]

1. e4 {[%clk 0:02:59]}  c5 {[%clk 0:02:59]} 2. Nc3 {[%clk 0:02:59]}  Nc6 {[%clk 0:03:00]} 3. g3 {[%clk 0:03:00]}  h5 {[%clk 0:02:57]} 4. Bg2 {[%clk 0:03:00]}  h4 {[%clk 0:02:56]} 5. d3 {[%clk 0:02:57]}  d6 {[%clk 0:02:55]} 6. Bg5 {[%clk 0:02:53]}  h3 {[%clk 0:02:53]} 7. Bf1 {[%clk 0:02:45]}  Nf6 {[%clk 0:02:52]} 8. Qd2 {[%clk 0:02:39]}  g6 {[%clk 0:02:49]} 9. f4 {[%clk 0:02:26]}  Bg7 {[%clk 0:02:48]} 10. O-O-O {[%clk 0:02:19]}  b5 {[%clk 0:02:47]} 11. Nd5 {[%clk 0:01:39]}  Nxd5 {[%clk 0:02:41]} 12. exd5 {[%clk 0:01:40]}  Nb4 {[%clk 0:02:41]} 13. Re1 {[%clk 0:00:49]}  Nxd5 {[%clk 0:02:41]} 14. Be2 {[%clk 0:00:43]}  Be6 {[%clk 0:02:39]} 15. Bf3 {[%clk 0:00:40]}  Nf6 {[%clk 0:02:33]} 16. Bc6+ {[%clk 0:00:28]}  Kf8 {[%clk 0:02:32]} 17. Bxa8 {[%clk 0:00:25]}  Qxa8 {[%clk 0:02:32]} 18. Ne2 {[%clk 0:00:25]}  b4 {[%clk 0:02:26]} 19. Rhf1 {[%clk 0:00:19]}  Qd5 {[%clk 0:02:25]} 20. b3 {[%clk 0:00:19]}  Ng4 {[%clk 0:02:19]} 21. Ng1 {[%clk 0:00:17]}  Qd4 {[%clk 0:02:15]} 22. Kd1 {[%clk 0:00:13]}  Qb2 {[%clk 0:02:00]} 23. Rxe6 {[%clk 0:00:08]}  fxe6 {[%clk 0:01:56]} 24. Qe2 {[%clk 0:00:06]}  Qa1+ {[%clk 0:01:53]} 25. Kd2 {[%clk 0:00:06]}  Bc3# {[%clk 0:01:54]} 0-1


[Site "https://www.chess.com"]

[Event "Titled Tuesday Blitz February 15 Late 2022"]
[White "Kaasen, Tor Fredrik"]
[Black "Stanisz, Patryk"]
[WhiteFideId "1516647"]
[BlackFideId "1123106"]
[WhiteElo "2335"]
[BlackElo "1876"]
[Result "1-0"]
[Round "02"]
[TimeControl "180+1"]
[Date "2022.02.16"]
[WhiteClock "0:01:49"]
[BlackClock "0:00:24"]

1. c4 {[%clk 0:02:59]}  f5 {[%clk 0:02:54]} 2. Nc3 {[%clk 0:02:58]}  Nf6 {[%clk 0:02:54]} 3. g3 {[%clk 0:02:56]}  d6 {[%clk 0:02:54]} 4. Bg2 {[%clk 0:02:57]}  g6 {[%clk 0:02:54]} 5. d4 {[%clk 0:02:57]}  Bg7 {[%clk 0:02:54]} 6. Nf3 {[%clk 0:02:58]}  O-O {[%clk 0:02:54]} 7. O-O {[%clk 0:02:59]}  c6 {[%clk 0:02:54]} 8. b4 {[%clk 0:02:57]}  Bd7 {[%clk 0:02:49]} 9. Bb2 {[%clk 0:02:56]}  Qe8 {[%clk 0:02:48]} 10. a4 {[%clk 0:02:52]}  a6 {[%clk 0:02:46]} 11. d5 {[%clk 0:02:50]}  h6 {[%clk 0:02:43]} 12. Nd4 {[%clk 0:02:49]}  g5 {[%clk 0:02:41]} 13. Qc2 {[%clk 0:02:45]}  Ng4 {[%clk 0:02:24]} 14. Rad1 {[%clk 0:02:37]}  Qh5 {[%clk 0:02:18]} 15. h3 {[%clk 0:02:34]}  Ne5 {[%clk 0:02:19]} 16. dxc6 {[%clk 0:02:16]}  Nbxc6 {[%clk 0:02:16]} 17. Nd5 {[%clk 0:02:15]}  f4 {[%clk 0:02:05]} 18. Nxc6 {[%clk 0:02:14]}  bxc6 {[%clk 0:01:58]} 19. Nxe7+ {[%clk 0:02:13]}  Kh8 {[%clk 0:01:58]} 20. Bxe5 {[%clk 0:02:05]}  Bxe5 {[%clk 0:01:52]} 21. Ng6+ {[%clk 0:02:05]}  Kg7 {[%clk 0:01:52]} 22. Nxe5 {[%clk 0:02:06]}  Bxh3 {[%clk 0:01:42]} 23. Bxh3 {[%clk 0:02:02]}  dxe5 {[%clk 0:01:27]} 24. Rd7+ {[%clk 0:01:57]}  Rf7 {[%clk 0:01:25]} 25. Rxf7+ {[%clk 0:01:57]}  Qxf7 {[%clk 0:01:18]} 26. Rd1 {[%clk 0:01:57]}  Re8 {[%clk 0:00:34]} 27. Qf5 {[%clk 0:01:50]}  Re7 {[%clk 0:00:27]} 28. Qxf7+ {[%clk 0:01:50]}  Kxf7 {[%clk 0:00:28]} 29. Rd6 {[%clk 0:01:48]}  Rb7 {[%clk 0:00:25]} 30. Rd7+ {[%clk 0:01:48]}  Rxd7 {[%clk 0:00:22]} 31. Bxd7 {[%clk 0:01:49]}  c5 {[%clk 0:00:23]} 32. b5 {[%clk 0:01:49]}  Ke7 {[%clk 0:00:24]} 33. bxa6 {[%clk 0:01:49]} 1-0


[Site "https://www.chess.com"]

[Event "Titled Tuesday Blitz February 15 Late 2022"]
[White "Kavyev, Ruslan"]
[Black "Adury, Anant"]
[WhiteFideId "34110981"]
[BlackFideId "30964687"]
[WhiteElo "2182"]
[BlackElo "2342"]
[Result "1-0"]
[Round "02"]
[TimeControl "180+1"]
[Date "2022.02.16"]
[WhiteClock "0:00:11"]
[BlackClock "0:00:08"]

1. d4 {[%clk 0:03:00]}  Nf6 {[%clk 0:02:59]} 2. c4 {[%clk 0:03:00]}  e6 {[%clk 0:03:00]} 3. g3 {[%clk 0:03:00]}  Bb4+ {[%clk 0:03:00]} 4. Bd2 {[%clk 0:03:00]}  a5 {[%clk 0:03:01]} 5. Bg2 {[%clk 0:03:00]}  O-O {[%clk 0:03:01]} 6. Nf3 {[%clk 0:03:00]}  Nc6 {[%clk 0:03:01]} 7. O-O {[%clk 0:03:00]}  d6 {[%clk 0:03:01]} 8. Nc3 {[%clk 0:03:00]}  e5 {[%clk 0:03:00]} 9. a3 {[%clk 0:02:59]}  Bxc3 {[%clk 0:03:00]} 10. Bxc3 {[%clk 0:03:00]}  Qe7 {[%clk 0:02:56]} 11. e3 {[%clk 0:02:59]}  Bg4 {[%clk 0:02:55]} 12. Qc2 {[%clk 0:02:57]}  Bh5 {[%clk 0:02:49]} 13. Nh4 {[%clk 0:02:51]}  Bg6 {[%clk 0:02:49]} 14. Nxg6 {[%clk 0:02:48]}  hxg6 {[%clk 0:02:49]} 15. b3 {[%clk 0:02:40]}  Rfe8 {[%clk 0:02:43]} 16. Rad1 {[%clk 0:02:34]}  exd4 {[%clk 0:02:42]} 17. exd4 {[%clk 0:02:34]}  Qd7 {[%clk 0:02:37]} 18. h3 {[%clk 0:02:27]}  d5 {[%clk 0:02:37]} 19. Kh2 {[%clk 0:02:22]}  a4 {[%clk 0:02:22]} 20. Bb2 {[%clk 0:02:17]}  axb3 {[%clk 0:02:21]} 21. Qxb3 {[%clk 0:02:14]}  Na5 {[%clk 0:02:21]} 22. Qb5 {[%clk 0:02:14]}  Nxc4 {[%clk 0:02:18]} 23. Qb3 {[%clk 0:02:05]}  Nxb2 {[%clk 0:02:06]} 24. Qxb2 {[%clk 0:02:06]}  b5 {[%clk 0:02:04]} 25. Rc1 {[%clk 0:02:03]}  c6 {[%clk 0:02:03]} 26. Rc2 {[%clk 0:02:03]}  Rec8 {[%clk 0:02:02]} 27. Rfc1 {[%clk 0:02:01]}  Ne8 {[%clk 0:01:59]} 28. Re2 {[%clk 0:01:23]}  Nd6 {[%clk 0:01:58]} 29. Rce1 {[%clk 0:01:24]}  Nc4 {[%clk 0:01:57]} 30. Qc1 {[%clk 0:01:22]}  Re8 {[%clk 0:01:56]} 31. Qg5 {[%clk 0:01:10]}  Rxe2 {[%clk 0:01:55]} 32. Rxe2 {[%clk 0:01:10]}  Re8 {[%clk 0:01:55]} 33. Qg4 {[%clk 0:01:05]}  Qd8 {[%clk 0:01:45]} 34. Ra2 {[%clk 0:00:58]}  Qf6 {[%clk 0:01:41]} 35. Qd7 {[%clk 0:00:53]}  Re1 {[%clk 0:01:41]} 36. a4 {[%clk 0:00:23]}  b4 {[%clk 0:01:40]} 37. Qc8+ {[%clk 0:00:22]}  Kh7 {[%clk 0:01:39]} 38. Qb7 {[%clk 0:00:23]}  Rb1 {[%clk 0:01:28]} 39. Re2 {[%clk 0:00:20]}  b3 {[%clk 0:01:27]} 40. Qb8 {[%clk 0:00:12]}  g5 {[%clk 0:01:19]} 41. Qc8 {[%clk 0:00:07]}  b2 {[%clk 0:01:15]} 42. Qb8 {[%clk 0:00:03]}  Ra1 {[%clk 0:01:06]} 43. Rxb2 {[%clk 0:00:02]}  Nxb2 {[%clk 0:01:06]} 44. Qxb2 {[%clk 0:00:03]}  Re1 {[%clk 0:00:55]} 45. a5 {[%clk 0:00:03]}  Re7 {[%clk 0:00:55]} 46. a6 {[%clk 0:00:03]}  Ra7 {[%clk 0:00:54]} 47. Qb6 {[%clk 0:00:04]}  Qe7 {[%clk 0:00:54]} 48. Qxc6 {[%clk 0:00:04]}  Qd7 {[%clk 0:00:54]} 49. Qb6 {[%clk 0:00:02]}  g6 {[%clk 0:00:52]} 50. Bxd5 {[%clk 0:00:01]}  Rxa6 {[%clk 0:00:32]} 51. Qxa6 {[%clk 0:00:02]}  Qxd5 {[%clk 0:00:33]} 52. Qb6 {[%clk 0:00:02]}  Qf3 {[%clk 0:00:33]} 53. Qb2 {[%clk 0:00:03]}  Qd1 {[%clk 0:00:32]} 54. Qc3 {[%clk 0:00:02]}  Qe2 {[%clk 0:00:30]} 55. Qe3 {[%clk 0:00:02]}  Qd1 {[%clk 0:00:31]} 56. Qe5 {[%clk 0:00:02]}  Qd2 {[%clk 0:00:30]} 57. Qe3 {[%clk 0:00:02]}  Qd1 {[%clk 0:00:30]} 58. Kg2 {[%clk 0:00:02]}  Kg7 {[%clk 0:00:29]} 59. g4 {[%clk 0:00:03]}  Kg8 {[%clk 0:00:28]} 60. Qe8+ {[%clk 0:00:02]}  Kg7 {[%clk 0:00:28]} 61. Qe5+ {[%clk 0:00:03]}  Kh7 {[%clk 0:00:28]} 62. Qe4 {[%clk 0:00:03]}  Kg8 {[%clk 0:00:24]} 63. d5 {[%clk 0:00:03]}  Kf8 {[%clk 0:00:24]} 64. Qe5 {[%clk 0:00:03]}  Qd3 {[%clk 0:00:22]} 65. Qxg5 {[%clk 0:00:03]}  Qe4+ {[%clk 0:00:22]} 66. Kg3 {[%clk 0:00:03]}  Qd3+ {[%clk 0:00:23]} 67. Kg2 {[%clk 0:00:03]}  Qe4+ {[%clk 0:00:22]} 68. Kg1 {[%clk 0:00:04]}  Qb1+ {[%clk 0:00:22]} 69. Kh2 {[%clk 0:00:04]}  Qc2 {[%clk 0:00:22]} 70. Qf4 {[%clk 0:00:03]}  Qd3 {[%clk 0:00:20]} 71. d6 {[%clk 0:00:03]}  Ke8 {[%clk 0:00:20]} 72. Qf6 {[%clk 0:00:03]}  Kf8 {[%clk 0:00:12]} 73. Kg2 {[%clk 0:00:01]}  Qd5+ {[%clk 0:00:10]} 74. Kh2 {[%clk 0:00:02]}  Kg8 {[%clk 0:00:10]} 75. Qd8+ {[%clk 0:00:02]}  Kg7 {[%clk 0:00:11]} 76. Qe7 {[%clk 0:00:02]}  Qf3 {[%clk 0:00:10]} 77. Qe5+ {[%clk 0:00:02]}  Kg8 {[%clk 0:00:10]} 78. Qg3 {[%clk 0:00:03]}  Qd5 {[%clk 0:00:09]} 79. g5 {[%clk 0:00:03]}  Kg7 {[%clk 0:00:09]} 80. h4 {[%clk 0:00:04]}  Kg8 {[%clk 0:00:08]} 81. Qf4 {[%clk 0:00:04]}  Kh7 {[%clk 0:00:07]} 82. Kg3 {[%clk 0:00:05]}  Kg8 {[%clk 0:00:07]} 83. Kg4 {[%clk 0:00:05]}  Qd1+ {[%clk 0:00:07]} 84. Kg3 {[%clk 0:00:04]}  Qd3+ {[%clk 0:00:07]} 85. Kg2 {[%clk 0:00:05]}  Qd5+ {[%clk 0:00:07]} 86. Qf3 {[%clk 0:00:05]}  Qxd6 {[%clk 0:00:07]} 87. Qg3 {[%clk 0:00:05]}  Qd5+ {[%clk 0:00:06]} 88. Qf3 {[%clk 0:00:06]}  Qd6 {[%clk 0:00:07]} 89. Kh3 {[%clk 0:00:06]}  Qe6+ {[%clk 0:00:07]} 90. Kg3 {[%clk 0:00:06]}  Qd6+ {[%clk 0:00:07]} 91. Qf4 {[%clk 0:00:07]}  Qe6 {[%clk 0:00:07]} 92. Kf3 {[%clk 0:00:08]}  Qb3+ {[%clk 0:00:07]} 93. Ke4 {[%clk 0:00:08]}  Qb7+ {[%clk 0:00:08]} 94. Kd4 {[%clk 0:00:09]}  Qb4+ {[%clk 0:00:08]} 95. Ke5 {[%clk 0:00:09]}  Qb8+ {[%clk 0:00:08]} 96. Ke4 {[%clk 0:00:10]}  Qb7+ {[%clk 0:00:09]} 97. Ke3 {[%clk 0:00:10]}  Qb3+ {[%clk 0:00:09]} 98. Ke2 {[%clk 0:00:11]}  Qc2+ {[%clk 0:00:08]} 99. Kf1 {[%clk 0:00:11]}  Qc4+ {[%clk 0:00:08]} 100. Qxc4 {[%clk 0:00:11]} 1-0


[Site "https://www.chess.com"]

[Event "Titled Tuesday Blitz February 15 Late 2022"]
[White "Khumalo, Keith"]
[Black "Sorokin, Aleksey"]
[WhiteFideId "14319470"]
[BlackFideId "24176460"]
[WhiteElo "1992"]
[BlackElo "2476"]
[Result "0-1"]
[Round "02"]
[TimeControl "180+1"]
[Date "2022.02.15"]
[WhiteClock "0:02:18"]
[BlackClock "0:01:08"]

1. d4 {[%clk 0:03:00]}  Nf6 {[%clk 0:02:59]} 2. c4 {[%clk 0:03:01]}  g6 {[%clk 0:02:58]} 3. Nc3 {[%clk 0:03:01]}  d5 {[%clk 0:02:58]} 4. Bg5 {[%clk 0:03:01]}  Bg7 {[%clk 0:02:58]} 5. Bxf6 {[%clk 0:03:01]}  Bxf6 {[%clk 0:02:59]} 6. cxd5 {[%clk 0:03:01]}  c5 {[%clk 0:02:58]} 7. Nf3 {[%clk 0:03:01]}  cxd4 {[%clk 0:02:53]} 8. Nxd4 {[%clk 0:03:02]}  Qb6 {[%clk 0:02:52]} 9. Nb3 {[%clk 0:03:03]}  a5 {[%clk 0:02:49]} 10. a4 {[%clk 0:03:03]}  O-O {[%clk 0:02:48]} 11. e4 {[%clk 0:03:04]}  Na6 {[%clk 0:02:33]} 12. Bb5 {[%clk 0:03:03]}  Nc7 {[%clk 0:02:30]} 13. Qe2 {[%clk 0:02:59]}  Bxc3+ {[%clk 0:02:18]} 14. bxc3 {[%clk 0:02:58]}  e6 {[%clk 0:02:19]} 15. c4 {[%clk 0:02:58]}  Nxb5 {[%clk 0:02:11]} 16. axb5 {[%clk 0:02:46]}  exd5 {[%clk 0:02:10]} 17. exd5 {[%clk 0:02:43]}  a4 {[%clk 0:02:04]} 18. O-O {[%clk 0:02:42]}  Bg4 {[%clk 0:02:03]} 19. Qxg4 {[%clk 0:02:40]}  axb3 {[%clk 0:02:03]} 20. Rab1 {[%clk 0:02:40]}  Ra3 {[%clk 0:01:54]} 21. g3 {[%clk 0:02:39]}  Qc5 {[%clk 0:01:48]} 22. Rfc1 {[%clk 0:02:37]}  Re8 {[%clk 0:01:46]} 23. Qf3 {[%clk 0:02:35]}  b2 {[%clk 0:01:45]} 24. Rc3 {[%clk 0:02:35]}  Ra1 {[%clk 0:01:43]} 25. Qd1 {[%clk 0:02:29]}  Re2 {[%clk 0:01:40]} 26. Rf3 {[%clk 0:02:24]}  Rxb1 {[%clk 0:01:28]} 27. Qxb1 {[%clk 0:02:22]}  Qb4 {[%clk 0:01:27]} 28. Re3 {[%clk 0:02:20]}  Rxe3 {[%clk 0:01:27]} 29. fxe3 {[%clk 0:02:21]}  Qa3 {[%clk 0:01:08]} 30. Qe4 {[%clk 0:02:18]}  Qa1+ {[%clk 0:01:08]} 0-1


[Site "https://www.chess.com"]

[Event "Titled Tuesday Blitz February 15 Late 2022"]
[White "Komissarov, Alexey"]
[Black "Antolak, Julia"]
[WhiteFideId "4176545"]
[BlackFideId "1159569"]
[WhiteElo "2216"]
[BlackElo "2104"]
[Result "0-1"]
[Round "02"]
[TimeControl "180+1"]
[Date "2022.02.16"]
[WhiteClock "0:00:43"]
[BlackClock "0:01:22"]

1. e4 {[%clk 0:03:00]}  c5 {[%clk 0:03:00]} 2. d4 {[%clk 0:02:59]}  cxd4 {[%clk 0:03:00]} 3. c3 {[%clk 0:03:00]}  dxc3 {[%clk 0:03:00]} 4. Nxc3 {[%clk 0:03:00]}  d6 {[%clk 0:02:56]} 5. Nf3 {[%clk 0:02:57]}  Nf6 {[%clk 0:02:55]} 6. Bc4 {[%clk 0:02:54]}  e6 {[%clk 0:02:54]} 7. O-O {[%clk 0:02:50]}  Be7 {[%clk 0:02:55]} 8. Qe2 {[%clk 0:02:46]}  O-O {[%clk 0:02:53]} 9. Rd1 {[%clk 0:02:41]}  Qa5 {[%clk 0:02:48]} 10. Bf4 {[%clk 0:02:28]}  e5 {[%clk 0:02:45]} 11. Bd2 {[%clk 0:02:26]}  Qc7 {[%clk 0:02:36]} 12. Rac1 {[%clk 0:02:19]}  Nc6 {[%clk 0:02:34]} 13. Nd5 {[%clk 0:02:03]}  Qd8 {[%clk 0:02:34]} 14. Nxe7+ {[%clk 0:01:53]}  Qxe7 {[%clk 0:02:33]} 15. h3 {[%clk 0:01:50]}  h6 {[%clk 0:02:32]} 16. b4 {[%clk 0:01:42]}  a6 {[%clk 0:02:07]} 17. a4 {[%clk 0:01:38]}  Be6 {[%clk 0:02:03]} 18. b5 {[%clk 0:01:36]}  axb5 {[%clk 0:02:02]} 19. axb5 {[%clk 0:01:34]}  Na5 {[%clk 0:02:03]} 20. Bxe6 {[%clk 0:01:31]}  Qxe6 {[%clk 0:02:03]} 21. Bb4 {[%clk 0:01:27]}  Rfd8 {[%clk 0:02:00]} 22. Rc7 {[%clk 0:01:08]}  b6 {[%clk 0:01:52]} 23. Bxa5 {[%clk 0:00:59]}  bxa5 {[%clk 0:01:28]} 24. Rc6 {[%clk 0:01:00]}  a4 {[%clk 0:01:27]} 25. b6 {[%clk 0:00:48]}  a3 {[%clk 0:01:26]} 26. b7 {[%clk 0:00:44]}  Rab8 {[%clk 0:01:26]} 27. Rcxd6 {[%clk 0:00:43]}  Rxd6 {[%clk 0:01:22]} 0-1


[Site "https://www.chess.com"]

[Event "Titled Tuesday Blitz February 15 Late 2022"]
[White "Kraus, Tomas"]
[Black "Tanenbaum, Zachary"]
[WhiteFideId "331708"]
[BlackFideId "2060850"]
[WhiteElo "2389"]
[BlackElo "2168"]
[Result "0-1"]
[Round "02"]
[TimeControl "180+1"]
[Date "2022.02.16"]
[WhiteClock "0:00:05"]
[BlackClock "0:00:19"]

1. e4 {[%clk 0:03:00]}  e5 {[%clk 0:02:39]} 2. Nf3 {[%clk 0:02:59]}  Nc6 {[%clk 0:02:40]} 3. Nc3 {[%clk 0:03:00]}  Nf6 {[%clk 0:02:39]} 4. d4 {[%clk 0:03:00]}  exd4 {[%clk 0:02:40]} 5. Nxd4 {[%clk 0:03:01]}  Bb4 {[%clk 0:02:41]} 6. Nxc6 {[%clk 0:03:01]}  bxc6 {[%clk 0:02:41]} 7. Bd3 {[%clk 0:03:02]}  d5 {[%clk 0:02:42]} 8. exd5 {[%clk 0:03:02]}  O-O {[%clk 0:02:42]} 9. O-O {[%clk 0:03:02]}  cxd5 {[%clk 0:02:43]} 10. Bg5 {[%clk 0:03:02]}  c6 {[%clk 0:02:43]} 11. Qf3 {[%clk 0:03:02]}  Be7 {[%clk 0:02:42]} 12. h3 {[%clk 0:02:46]}  Rb8 {[%clk 0:02:38]} 13. b3 {[%clk 0:02:44]}  Be6 {[%clk 0:02:38]} 14. Ne2 {[%clk 0:02:42]}  c5 {[%clk 0:02:38]} 15. c3 {[%clk 0:02:24]}  Re8 {[%clk 0:02:35]} 16. Nf4 {[%clk 0:02:23]}  Qd7 {[%clk 0:02:21]} 17. Nxe6 {[%clk 0:02:18]}  fxe6 {[%clk 0:02:22]} 18. Rae1 {[%clk 0:02:09]}  Rf8 {[%clk 0:02:15]} 19. Qe2 {[%clk 0:01:59]}  h6 {[%clk 0:02:12]} 20. Bh4 {[%clk 0:01:56]}  Rb6 {[%clk 0:01:59]} 21. Bb1 {[%clk 0:01:53]}  Bd6 {[%clk 0:01:33]} 22. Kh1 {[%clk 0:01:31]}  Qf7 {[%clk 0:01:12]} 23. Qxe6 {[%clk 0:01:27]}  Qxe6 {[%clk 0:01:11]} 24. Rxe6 {[%clk 0:01:26]}  g5 {[%clk 0:01:05]} 25. Bg3 {[%clk 0:01:13]}  Bxg3 {[%clk 0:01:06]} 26. Rxb6 {[%clk 0:01:12]}  axb6 {[%clk 0:01:05]} 27. fxg3 {[%clk 0:01:12]}  Nh5 {[%clk 0:00:46]} 28. Rxf8+ {[%clk 0:00:50]}  Kxf8 {[%clk 0:00:47]} 29. Kh2 {[%clk 0:00:51]}  Ke7 {[%clk 0:00:44]} 30. Bg6 {[%clk 0:00:50]}  Nf6 {[%clk 0:00:41]} 31. g4 {[%clk 0:00:50]}  Kd6 {[%clk 0:00:37]} 32. Kg3 {[%clk 0:00:49]}  Ke5 {[%clk 0:00:35]} 33. Kf3 {[%clk 0:00:50]}  d4 {[%clk 0:00:35]} 34. cxd4+ {[%clk 0:00:41]}  Kxd4 {[%clk 0:00:34]} 35. g3 {[%clk 0:00:41]}  Kc3 {[%clk 0:00:33]} 36. Bf7 {[%clk 0:00:40]}  b5 {[%clk 0:00:30]} 37. a4 {[%clk 0:00:35]}  bxa4 {[%clk 0:00:28]} 38. bxa4 {[%clk 0:00:36]}  Kb4 {[%clk 0:00:28]} 39. Ke3 {[%clk 0:00:16]}  Kxa4 {[%clk 0:00:26]} 40. Kd3 {[%clk 0:00:17]}  Kb4 {[%clk 0:00:25]} 41. Be6 {[%clk 0:00:17]}  Kb5 {[%clk 0:00:20]} 42. h4 {[%clk 0:00:15]}  Kb4 {[%clk 0:00:18]} 43. hxg5 {[%clk 0:00:15]}  hxg5 {[%clk 0:00:19]} 44. Bd5 {[%clk 0:00:05]}  Nxd5 {[%clk 0:00:19]} 0-1


[Site "https://www.chess.com"]

[Event "Titled Tuesday Blitz February 15 Late 2022"]
[White "Kujawski, Adam"]
[Black "Kobo, Ori"]
[WhiteFideId "1100920"]
[BlackFideId "2812320"]
[WhiteElo "2053"]
[BlackElo "2420"]
[Result "0-1"]
[Round "02"]
[TimeControl "180+1"]
[Date "2022.02.16"]
[WhiteClock "0:00:02"]
[BlackClock "0:00:43"]

1. e4 {[%clk 0:03:00]}  c5 {[%clk 0:02:59]} 2. Nf3 {[%clk 0:03:00]}  e6 {[%clk 0:03:00]} 3. d4 {[%clk 0:03:00]}  cxd4 {[%clk 0:03:01]} 4. Nxd4 {[%clk 0:03:01]}  a6 {[%clk 0:03:01]} 5. c4 {[%clk 0:02:59]}  Nf6 {[%clk 0:03:00]} 6. Nc3 {[%clk 0:02:59]}  Qc7 {[%clk 0:03:00]} 7. Bd3 {[%clk 0:02:32]}  b6 {[%clk 0:02:50]} 8. O-O {[%clk 0:02:24]}  Bb7 {[%clk 0:02:50]} 9. b3 {[%clk 0:01:23]}  Be7 {[%clk 0:02:38]} 10. Bb2 {[%clk 0:01:21]}  d6 {[%clk 0:02:38]} 11. Kh1 {[%clk 0:01:13]}  Nbd7 {[%clk 0:02:37]} 12. Bc2 {[%clk 0:01:08]}  Nc5 {[%clk 0:02:17]} 13. Qe2 {[%clk 0:01:07]}  O-O {[%clk 0:02:10]} 14. f4 {[%clk 0:01:01]}  g6 {[%clk 0:01:54]} 15. e5 {[%clk 0:00:59]}  dxe5 {[%clk 0:01:49]} 16. fxe5 {[%clk 0:00:59]}  Ne8 {[%clk 0:01:45]} 17. Ne4 {[%clk 0:00:21]}  Nxe4 {[%clk 0:01:41]} 18. Bxe4 {[%clk 0:00:22]}  Ng7 {[%clk 0:01:37]} 19. Bxb7 {[%clk 0:00:16]}  Qxb7 {[%clk 0:01:38]} 20. Rad1 {[%clk 0:00:09]}  Rac8 {[%clk 0:01:31]} 21. Bc1 {[%clk 0:00:04]}  Rfd8 {[%clk 0:01:20]} 22. Bh6 {[%clk 0:00:04]}  Bc5 {[%clk 0:01:07]} 23. Bxg7 {[%clk 0:00:03]}  Kxg7 {[%clk 0:01:04]} 24. Nf3 {[%clk 0:00:03]}  h6 {[%clk 0:00:59]} 25. Rxd8 {[%clk 0:00:03]}  Rxd8 {[%clk 0:00:59]} 26. Rd1 {[%clk 0:00:03]}  Rxd1+ {[%clk 0:00:47]} 27. Qxd1 {[%clk 0:00:04]}  Qe4 {[%clk 0:00:48]} 28. g3 {[%clk 0:00:03]}  b5 {[%clk 0:00:46]} 29. cxb5 {[%clk 0:00:02]}  axb5 {[%clk 0:00:47]} 30. Kg2 {[%clk 0:00:02]}  g5 {[%clk 0:00:43]} 0-1


[Site "https://www.chess.com"]